bitfinex/quotes_SOLUSD_20220212
["timestamp","ask_amount","ask_price","bid_price","bid_amount"]
[1644648174560,12.67,93.48,93.445,3.737074]
[1644648174761,12.67,93.48,93.273,3.0434]
[1644648174965,1.97997695,93.445,93.288,4.19458]
[1644648175161,12.67,93.43,93.288,7.931654]
[1644648175361,12.67,93.42,93.288,4.19458]
[1644648175563,5.48,93.457,93.289,38.02793835]
[1644648175564,12.67,93.41,93.289,38.02793835]
[1644648175764,12.67,93.4,93.3,3.69404]
[1644648175961,12.67,93.39,93.3,1.19404]
[1644648176161,158.35,93.37,93.3,1.19404]
[1644648176361,171.02,93.36,93.289,38.02793835]
[1644648176562,12.67,93.36,93.289,38.02793835]
[1644648176761,2.38366791,93.359,93.289,38.02793835]
[1644648176961,5.48,93.346,93.253,3.737074]
[1644648177161,171.02,93.34,93.122,16.4699]
[1644648177362,158.35,93.34,93.151,4.20075]
[1644648177561,2.38366791,93.345,93.151,4.20075]
[1644648177562,7.74566791,93.339,93.151,4.20075]
[1644648177863,158.35,93.31,93.151,4.20075]
[1644648178062,158.35,93.29,93.152,38.62045312]
[1644648178267,0.48,93.266,93.152,38.62045312]
[1644648178489,171.02,93.26,93.152,38.12045312]
[1644648178669,0.48,93.246,93.152,38.12045312]
[1644648179067,158.35,93.2,93.152,38.12045312]
[1644648179267,12.67,93.24,93.152,38.12045312]
[1644648179268,171.02,93.19,93.152,38.12045312]
[1644648179467,12.67,93.18,93.152,38.12045312]
[1644648179768,5.366,93.179,93.151,4.20075]
[1644648180067,5.366,93.179,92.865,48.62225146]
[1644648180068,0.48,93.176,93.026,5.366]
[1644648180265,174.4828,93.17,92.924,15.989]
[1644648180465,174.4828,93.17,93.0,0.70752]
[1644648180466,12.67,93.16,93.0,0.70752]
[1644648180665,12.67,93.16,93.001,46.49089622]
[1644648180874,5.371,93.159,93.001,46.49089622]
[1644648181168,158.35,93.13,93.0,0.70752]
[1644648181369,12.67,93.12,93.0,0.70752]
[1644648181573,12.67,93.11,93.0,0.70752]
[1644648181770,12.67,93.1,93.0,0.70752]
[1644648181968,12.67,93.1,93.001,44.73631338]
[1644648181969,158.35,93.09,93.001,44.73631338]
[1644648182169,12.67,93.08,93.001,44.73631338]
[1644648182367,171.02,93.08,93.001,44.73631338]
[1644648182770,158.35,93.05,93.0,2e-05]
[1644648182967,158.35,93.05,92.8,16.1434]
[1644648182968,171.02,93.04,92.835,16.0515]
[1644648183167,12.67,93.04,92.821,5.0]
[1644648183368,16.88556717,93.039,92.821,5.0]
[1644648183571,158.35,93.02,92.821,5.0]
[1644648183769,12.67,93.01,92.822,43.11214202]
[1644648183971,134.11469625,93.01,92.822,31.93914202]
[1644648184169,158.35,93.06,92.824,67.5]
[1644648184369,17.6439552,93.047,92.824,67.5]
[1644648184570,16.39053375,93.087,92.825,13.76166791]
[1644648184771,5.85258651,93.087,92.84,12.67]
[1644648184970,1.794,93.118,92.841,5.378]
[1644648185170,12.67,93.12,92.843,0.31344283]
[1644648185372,5.0,93.206,92.87,16.1314]
[1644648185572,23.9812,93.249,92.87,16.1314]
[1644648185573,11.15378933,93.23,92.887,0.30547091]
[1644648185771,3.737074,93.206,93.001,5.0]
[1644648185998,4.217074,93.266,93.002,5.37]
[1644648186207,5.39066248,93.266,93.091,5.0]
[1644648186399,3.737074,93.266,93.092,68.0]
[1644648186601,0.007074,93.266,93.101,5.0]
[1644648186999,0.007074,93.266,93.12,158.35]
[1644648187296,5.48,93.447,93.124,3.0]
[1644648187497,5.48,93.447,93.161,5.0]
[1644648187498,2.38366791,93.356,93.161,5.0]
[1644648187699,0.00669565,93.266,93.15,7.0]
[1644648187899,0.48,93.427,93.12,7.0]
[1644648188098,0.42078361,119.4,93.18,158.35]
[1644648188099,0.48,93.397,93.18,158.35]
[1644648188299,0.48,93.417,93.19,171.02]
[1644648188502,18.44974294,93.426,93.19,12.67]
[1644648188703,4.12268,93.425,93.24,158.35]
[1644648188899,4.12268,93.425,93.25,12.67]
[1644648189101,16.0743,93.55,93.261,5.0]
[1644648189300,47.53907742,93.538,93.27,12.67]
[1644648189500,11.657744,93.537,93.37,7.0]
[1644648189702,11.657744,93.537,93.38,12.67]
[1644648189901,13.739706,93.557,93.39,12.67]
[1644648190104,2.348,93.536,93.4,12.67]
[1644648190304,2.35,93.556,93.41,12.67]
[1644648190500,2.35,93.556,93.36,158.35]
[1644648190501,2.352,93.535,93.361,5.349]
[1644648190701,43.83267547,93.54,93.361,5.349]
[1644648190902,43.83267547,93.54,93.361,12.11380869]
[1644648191102,43.83267547,93.54,93.362,17.46280869]
[1644648191307,43.83267547,93.54,93.38,158.35]
[1644648191502,43.83267547,93.54,93.4,158.35]
[1644648191701,43.83267547,93.54,93.41,171.02]
[1644648191903,43.83267547,93.54,93.42,12.67]
[1644648192103,2.38366791,93.571,93.43,12.67]
[1644648192301,5.0,93.677,93.4,158.35]
[1644648192302,2.374,93.569,93.44,12.67]
[1644648192603,4.12268,93.568,93.45,12.67]
[1644648192803,4.12268,93.568,93.46,12.67]
[1644648193002,2.324,93.567,93.47,12.67]
[1644648193201,2.324,93.567,93.42,158.35]
[1644648193202,2.38366791,93.568,93.48,12.67]
[1644648193401,2.38366791,93.584,93.48,12.67]
[1644648193601,2.271,93.603,93.481,5.346]
[1644648193805,2.253,93.583,93.48,12.67]
[1644648194002,4.12268,93.582,93.48,12.67]
[1644648194206,4.12268,93.582,93.481,5.345]
[1644648194403,4.12268,93.582,93.48,12.67]
[1644648195302,40.23798271,93.581,93.48,12.67]
[1644648195505,6.46968,93.58,93.48,12.67]
[1644648195704,6.46968,93.58,93.46,12.67]
[1644648197103,18.71529967,93.579,93.46,12.67]
[1644648197303,4.12268,93.577,93.44,12.67]
[1644648197504,4.60268,93.577,93.44,12.67]
[1644648197705,0.48,93.547,93.42,12.67]
[1644648198003,18.71529967,93.576,93.4,12.67]
[1644648198004,0.48,93.537,93.4,12.67]
[1644648198205,0.48,93.517,93.37,12.67]
[1644648198404,0.48,93.507,93.342,5.351]
[1644648198605,4.12268,93.505,93.34,12.67]
[1644648199006,2.348,93.504,93.34,12.67]
[1644648199205,0.48,93.497,93.34,12.67]
[1644648199505,45.11556977,93.495,93.34,12.67]
[1644648199705,2.347,93.494,93.34,12.67]
[1644648199906,4.73066791,93.494,93.34,12.67]
[1644648200106,4.12268,93.493,93.34,12.67]
[1644648200307,2.346,93.492,93.341,12.28930869]
[1644648200508,2.346,93.532,93.35,12.67]
[1644648200706,2.346,93.586,93.35,12.67]
[1644648200909,4.12268,93.585,93.351,45.91995942]
[1644648201105,6.46968,93.585,93.351,45.91995942]
[1644648201308,42.01322141,93.584,93.352,29.36753519]
[1644648201509,6.46968,93.583,93.352,45.91995942]
[1644648201708,8.85334791,93.583,93.353,20.0219766]
[1644648201906,0.48,93.577,93.353,17.63830869]
[1644648202106,20.0661898,93.582,93.354,12.28930869]
[1644648202107,0.48,93.547,93.354,12.28930869]
[1644648202306,0.48,93.567,93.355,5.349]
[1644648202506,4.73466791,93.546,93.37,12.67]
[1644648202807,2.38366791,93.572,93.38,12.67]
[1644648203006,2.353,93.571,93.39,12.67]
[1644648203207,2.38366791,93.61,93.4,12.67]
[1644648203407,0.48,93.607,93.41,12.67]
[1644648203608,0.48,93.597,93.44,7.0]
[1644648203810,2.358,93.609,93.43,12.67]
[1644648203811,0.48,93.587,93.43,12.67]
[1644648204008,0.48,93.587,93.42,12.67]
[1644648204211,38.32497298,93.585,93.42,12.67]
[1644648204409,38.32497298,93.585,93.421,5.347]
[1644648204709,0.48,93.557,93.392,5.347]
[1644648204910,0.48,93.547,93.376,5.348]
[1644648205109,2.323,93.546,93.362,5.349]
[1644648205308,0.48,93.517,93.331,11.27819758]
[1644648205510,0.48,93.507,93.331,5.351]
[1644648205711,0.48,93.497,93.33,12.67]
[1644648206110,4.65366791,93.496,93.331,5.352]
[1644648206313,0.48,93.467,93.312,5.352]
[1644648206510,0.48,93.457,93.31,19.50603]
[1644648206711,5.354,93.456,93.311,5.353]
[1644648206912,45.88227924,93.465,93.311,5.353]
[1644648207110,45.88227924,93.465,93.31,19.50603]
[1644648207311,2.38366791,93.464,93.311,5.354]
[1644648207513,5.354,93.463,93.31,19.50603]
[1644648207813,5.354,93.494,93.312,18.11100428]
[1644648208011,5.354,93.502,93.313,5.353]
[1644648208214,0.48,93.497,93.313,34.74220186]
[1644648208412,0.48,93.497,93.313,27.00553395]
[1644648208612,35.59869095,93.495,93.314,5.353]
[1644648208814,35.59869095,93.495,93.314,19.01486549]
[1644648209114,5.353,93.516,93.315,13.66186549]
[1644648209314,5.352,93.525,93.315,19.01386549]
[1644648209513,2.38366791,93.548,93.317,4.19328]
[1644648209714,5.352,93.579,93.33,12.67]
[1644648209914,5.349,93.586,93.331,4.19265]
[1644648210113,44.06387251,93.585,93.35,7.0]
[1644648210314,44.06387251,93.585,93.38,16.0468]
[1644648210513,5.348,93.584,93.39,12.67]
[1644648210914,5.348,93.584,93.391,7.73166791]
[1644648211115,5.348,93.584,93.391,34.73720186]
[1644648211316,5.348,93.584,93.392,13.66186549]
[1644648211518,44.06387251,93.585,93.41,16.0432]
[1644648211714,44.06387251,93.585,93.42,12.67]
[1644648211914,5.347,93.584,93.431,5.0]
[1644648212116,5.346,93.619,93.44,12.67]
[1644648212316,0.48,93.667,93.441,5.345]
[1644648212519,5.344,93.666,93.471,5.0]
[1644648212718,5.344,93.666,93.48,12.67]
[1644648212917,38.7588937,93.665,93.481,10.343]
[1644648213121,0.48,93.647,93.481,5.343]
[1644648213318,5.343,93.646,93.48,12.67]
[1644648213517,5.343,93.646,93.481,5.343]
[1644648213518,0.48,93.637,93.481,5.343]
[1644648213720,46.19064274,93.645,93.481,5.343]
[1644648213920,5.343,93.644,93.481,5.343]
[1644648214522,5.343,93.644,93.482,2.38366791]
[1644648214724,46.19064274,93.645,93.482,2.38366791]
[1644648214922,5.343,93.644,93.482,2.38366791]
[1644648215122,5.343,93.67,93.482,2.38366791]
[1644648215322,5.343,93.671,93.483,10.27539202]
[1644648215522,188.1,93.72,93.483,25.43715616]
[1644648215523,5.343,93.719,93.483,25.43715616]
[1644648215722,5.343,93.719,93.484,2.38366791]
[1644648215921,2.38366791,93.718,93.484,12.65905993]
[1644648216121,41.02443799,93.716,93.49,16.0315]
[1644648216323,0.48,93.697,93.5,12.67]
[1644648216525,5.341,93.696,93.5,12.67]
[1644648216724,0.48,93.687,93.5,12.67]
[1644648216923,38.91147901,93.695,93.5,12.67]
[1644648216924,0.48,93.647,93.5,12.67]
[1644648217125,0.48,93.617,93.44,12.67]
[1644648217423,16.0487,93.64,93.44,12.67]
[1644648217424,0.48,93.607,93.441,4.18771]
[1644648217622,5.346,93.606,93.441,9.53271]
[1644648217825,24.94498424,93.606,93.441,9.53271]
[1644648218224,0.48,93.597,93.441,9.53271]
[1644648218425,37.524701,93.595,93.441,4.18771]
[1644648218625,5.346,93.594,93.442,5.346]
[1644648218827,5.346,93.594,93.453,4.18717]
[1644648219128,5.346,93.594,93.46,12.67]
[1644648219427,37.524701,93.595,93.473,4.18628]
[1644648219627,5.346,93.593,93.473,4.18628]
[1644648219827,37.524701,93.595,93.474,5.345]
[1644648220125,37.524701,93.595,93.486,4.18569]
[1644648220325,5.345,93.594,93.486,4.18569]
[1644648220626,7.72866791,93.594,93.486,4.18569]
[1644648220826,2.38366791,93.593,93.486,4.18569]
[1644648221634,56.97042555,93.537,93.486,4.18569]
[1644648221828,35.52861293,93.536,93.486,4.18569]
[1644648224233,35.52861293,93.536,93.486,0.00569]
[1644648225230,5.346,93.535,93.486,0.00569]
[1644648226530,35.52861293,93.536,93.486,0.00569]
[1644648227351,225.42395454,93.537,93.486,0.00569]
[1644648229555,225.42395454,93.537,93.431,5.346]
[1644648229752,225.42395454,93.537,93.432,4.18811]
[1644648232253,5.348,93.536,93.432,4.18811]
[1644648232456,225.42395454,93.537,93.433,5.348]
[1644648232657,225.42395454,93.537,93.443,4.18762]
[1644648232954,5.348,93.536,93.443,4.18762]
[1644648233154,0.48,93.527,93.444,4.18758]
[1644648233353,5.348,93.526,93.444,4.18758]
[1644648233956,24.94698424,93.526,93.444,4.18758]
[1644648234154,52.86,93.525,93.444,4.18758]
[1644648234356,5.348,93.524,93.444,4.18758]
[1644648234559,5.348,93.529,93.444,4.18758]
[1644648234962,5.348,93.529,93.361,5.348]
[1644648235163,5.348,93.529,93.363,4.19121]
[1644648235563,42.30154244,93.528,93.364,5.349]
[1644648235762,5.349,93.527,93.364,5.349]
[1644648235964,5.349,93.527,93.361,5.349]
[1644648236163,58.689,93.527,93.36,12.67]
[1644648236363,58.689,93.527,93.361,5.349]
[1644648236567,58.689,93.527,93.36,12.67]
[1644648236764,0.48,93.517,93.36,12.67]
[1644648236965,5.351,93.516,93.36,12.67]
[1644648237166,0.48,93.507,93.36,12.67]
[1644648237365,0.48,93.497,93.341,5.349]
[1644648237666,0.48,93.497,93.333,114.4145]
[1644648237667,5.48,93.497,93.333,114.4145]
[1644648237866,5.352,93.496,93.321,3.0012391]
[1644648238470,5.352,93.496,93.32,15.6712391]
[1644648238669,5.352,93.496,93.32,12.67]
[1644648238969,47.66633138,93.489,93.34,12.67]
[1644648239267,47.66633138,93.489,93.341,15.73554583]
[1644648239469,47.66633138,93.489,93.342,6.00550278]
[1644648239670,47.66633138,93.489,93.361,1.50203153]
[1644648239969,5.351,93.488,93.362,1.50203153]
[1644648240368,5.351,93.488,93.36,12.67]
[1644648242571,5.351,93.488,93.36,28.7311]
[1644648242770,47.66633138,93.489,93.361,5.351]
[1644648242969,47.66633138,93.489,93.364,1.50203153]
[1644648243169,47.66633138,93.489,93.363,1.50203153]
[1644648243368,47.66633138,93.489,93.361,1.50203153]
[1644648243570,47.66633138,93.489,93.361,5.351]
[1644648244174,46.16633138,93.489,93.361,5.351]
[1644648244771,46.16633138,93.489,93.37,16.0593]
[1644648244977,5.351,93.518,93.371,5.351]
[1644648245271,113.0,93.489,93.371,17.20064577]
[1644648245670,113.0,93.489,93.372,12.73128215]
[1644648245871,40.17310079,93.488,93.376,1.50203153]
[1644648246071,40.40154088,93.468,93.371,5.351]
[1644648246472,113.0,93.469,93.371,5.351]
[1644648246670,188.1,93.51,93.371,5.351]
[1644648246873,225.42395454,93.537,93.373,1.50203153]
[1644648247071,225.42395454,93.537,93.41,16.0542]
[1644648247272,113.0,93.534,93.41,16.0542]
[1644648247473,48.38503359,93.533,93.41,16.0542]
[1644648247676,5.349,93.532,93.4,12.67]
[1644648247873,0.48,93.507,93.381,1.50203153]
[1644648248074,0.48,93.507,93.371,5.351]
[1644648248271,35.99587134,93.505,93.36,1.50203153]
[1644648248471,35.99587134,93.505,93.361,5.351]
[1644648248672,35.99587134,93.505,93.368,1.50203153]
[1644648248873,35.99587134,93.505,93.35,53.5379]
[1644648248874,35.99587134,93.505,93.367,1.50203153]
[1644648249273,5.351,93.504,93.364,1.50203153]
[1644648249472,0.48,93.497,93.364,1.50203153]
[1644648249672,7.73466791,93.504,93.351,1.50203153]
[1644648249673,53.5611,93.49,93.351,1.50203153]
[1644648249878,113.0,93.488,93.358,1.50203153]
[1644648250076,113.0,93.488,93.331,3.0012391]
[1644648250077,113.0,93.488,93.359,1.50203153]
[1644648250278,5.352,93.487,93.359,1.50203153]
[1644648250472,5.352,93.487,93.356,1.50203153]
[1644648250672,5.352,93.487,93.354,1.50203153]
[1644648250875,5.352,93.487,93.351,1.50203153]
[1644648251273,13.43747024,93.487,93.351,1.50203153]
[1644648251477,22.56731633,93.487,93.351,1.50203153]
[1644648251876,16.0666,93.48,93.35,16.0648]
[1644648252075,5.352,93.479,93.35,16.0648]
[1644648252276,17.21531633,93.487,93.35,16.0648]
[1644648252476,5.352,93.479,93.35,16.0648]
[1644648252675,5.352,93.486,93.35,16.0648]
[1644648252879,5.352,93.478,93.35,17.56683153]
[1644648253076,22.56731633,93.485,93.35,16.0648]
[1644648253277,17.21531633,93.485,93.35,17.56683153]
[1644648253477,5.352,93.484,93.35,17.56683153]
[1644648253676,5.352,93.484,93.351,1.50203153]
[1644648253876,36.70710837,93.469,93.351,1.50203153]
[1644648254076,36.70710837,93.469,93.35,16.0648]
[1644648254278,5.352,93.468,93.35,16.0648]
[1644648254679,5.352,93.468,93.35,17.56683153]
[1644648255880,5.352,93.468,93.357,1.50203153]
[1644648256080,5.352,93.468,93.356,1.50203153]
[1644648256280,36.70710837,93.469,93.356,1.50203153]
[1644648256482,5.352,93.468,93.36,16.0646]
[1644648256682,36.70710837,93.469,93.36,17.56663153]
[1644648256881,36.70710837,93.469,93.369,1.50203153]
[1644648257079,5.352,93.519,93.372,1.50203153]
[1644648257379,5.352,93.519,93.36,12.67]
[1644648257380,5.352,93.512,93.382,1.50203153]
[1644648257582,5.351,93.518,93.384,1.50203153]
[1644648257781,5.351,93.51,93.382,1.50203153]
[1644648257984,39.39181019,93.509,93.39,16.059]
[1644648258183,5.349,93.508,93.39,16.059]
[1644648258381,39.39181019,93.509,93.391,5.349]
[1644648258782,39.39181019,93.509,93.326,39.1711]
[1644648258783,39.39181019,93.509,93.393,1.50203153]
[1644648258981,39.39181019,93.509,93.398,1.50203153]
[1644648259381,39.39181019,93.509,93.399,5.349]
[1644648259582,39.39181019,93.509,93.41,1.50203153]
[1644648259783,39.39181019,93.509,93.417,1.50203153]
[1644648259981,39.39181019,93.509,93.418,5.349]
[1644648260180,39.39181019,93.509,93.42,1.50203153]
[1644648260381,39.39181019,93.509,93.418,6.85103153]
[1644648260791,39.39181019,93.509,93.419,1.50203153]
[1644648261011,39.39181019,93.509,93.48,1.1941152]
[1644648262080,38.89181019,93.509,93.48,1.1941152]
[1644648262283,16.0513,93.56,93.48,1.1941152]
[1644648262485,6.27813394,93.489,93.48,1.1941152]
[1644648262683,38.36747066,93.489,93.48,1.62560293]
[1644648262884,28.36747066,93.489,93.48,1.62560293]
[1644648263284,60.45680738,93.489,93.48,1.62560293]
[1644648263684,82.96151044,93.489,93.48,1.62560293]
[1644648263884,27.81272256,93.489,93.48,1.62560293]
[1644648264086,113.0,93.542,93.48,1.62560293]
[1644648264284,0.00933672,93.489,93.481,5.346]
[1644648264487,51.85505589,93.489,93.481,5.346]
[1644648264689,5.348,93.6,93.48,14.29560293]
[1644648264886,113.0,93.614,93.48,14.29560293]
[1644648264887,45.26134736,93.587,93.481,5.348]
[1644648265087,45.26134736,93.587,93.51,16.0378]
[1644648265291,1.41458463,93.634,93.52,12.67]
[1644648265486,5.344,93.633,93.52,12.67]
[1644648265689,0.00533672,93.489,93.482,2.38366791]
[1644648265891,1.41458463,93.655,93.49,12.67]
[1644648266090,1.41458463,93.651,93.492,0.02]
[1644648266289,0.00933672,93.489,93.481,6.50203153]
[1644648266492,35.88042714,93.597,93.49,12.67]
[1644648267292,35.88042714,93.597,93.486,27.0]
[1644648267493,35.88042714,93.597,93.52,0.58225146]
[1644648267692,35.88042714,93.597,93.53,12.67]
[1644648267894,35.88042714,93.597,93.531,5.344]
[1644648268095,5.344,93.669,93.531,5.344]
[1644648268296,1.41458463,93.69,93.531,5.344]
[1644648268512,5.343,93.689,93.531,5.344]
[1644648268714,5.343,93.698,93.53,4.96509286]
[1644648268914,5.344,93.688,93.53,4.96509286]
[1644648269114,36.03719833,93.609,93.54,16.0342]
[1644648269315,16.0307,93.68,93.53,42.34245614]
[1644648269515,16.0307,93.68,93.55,12.67]
[1644648269714,5.344,93.679,93.55,12.67]
[1644648270114,5.344,93.679,93.531,5.344]
[1644648270314,5.344,93.679,93.56,16.0306]
[1644648270516,16.0307,93.68,93.57,12.67]
[1644648270715,43.11175922,93.595,93.57,12.67]
[1644648270918,75.16475351,93.595,93.57,12.67]
[1644648271515,75.16475351,93.595,93.54,12.67]
[1644648271719,75.16475351,93.595,93.5,12.67]
[1644648272318,75.16475351,93.595,93.585,1.1941152]
[1644648272518,75.16475351,93.595,93.585,0.0041152]
[1644648272719,75.16475351,93.595,93.5,12.67]
[1644648272920,5.344,93.594,93.5,12.67]
[1644648273219,7.45385541,93.489,93.48,12.67]
[1644648273422,7.45385541,93.489,93.46,28.7175]
[1644648273822,5.349,93.593,93.462,68.0]
[1644648274019,75.16475351,93.595,93.462,68.0]
[1644648274220,75.16475351,93.595,93.463,5.345]
[1644648274421,75.16475351,93.595,93.46,171.02]
[1644648274422,47.30389172,93.594,93.5,16.0401]
[1644648274619,52.64889172,93.594,93.44,5.345]
[1644648274821,52.64889172,93.594,93.45,12.67]
[1644648275020,47.30389172,93.594,93.45,12.67]
[1644648275221,16.0464,93.59,93.451,5.346]
[1644648275421,5.346,93.589,93.45,66.1502]
[1644648275622,5.346,93.592,93.451,5.346]
[1644648275823,17.21531633,93.589,93.45,12.67]
[1644648276222,5.346,93.588,93.45,12.67]
[1644648276622,12.67,93.58,93.45,12.67]
[1644648276824,47.66914128,93.558,93.45,28.7189]
[1644648277222,47.66914128,93.558,93.43,24.8735]
[1644648277430,24.93464659,93.557,93.43,24.8735]
[1644648277829,19.58764659,93.556,93.43,24.8735]
[1644648278123,0.48,93.547,93.38,12.67]
[1644648278323,12.67,93.54,93.38,12.67]
[1644648278525,48.68521287,93.539,93.391,2.38366791]
[1644648278728,43.33621287,93.539,93.4,12.67]
[1644648278923,5.349,93.538,93.4,12.67]
[1644648279122,43.33621287,93.539,93.4,12.67]
[1644648279123,43.33621287,93.539,93.43,16.0512]
[1644648279322,16.0447,93.6,93.44,12.67]
[1644648279323,113.0,93.546,93.44,12.67]
[1644648279524,5.347,93.578,93.441,5.347]
[1644648279724,5.346,93.622,93.441,22.89243205]
[1644648279925,5.346,93.628,93.441,39.28380072]
[1644648280226,46.16724367,93.605,93.47,16.0434]
[1644648280425,5.346,93.657,93.48,12.67]
[1644648280625,5.345,93.678,93.501,5.0]
[1644648280831,5.345,93.669,93.51,12.67]
[1644648281030,5.345,93.669,93.481,23.84725881]
[1644648281031,12.67,93.69,93.52,12.67]
[1644648281225,5.345,93.668,93.53,12.67]
[1644648281430,16.0325,93.67,93.53,12.67]
[1644648281628,16.0325,93.67,93.531,5.344]
[1644648282028,16.0325,93.67,93.53,10.59990114]
[1644648282226,16.0325,93.67,93.481,16.4635909]
[1644648282227,5.344,93.669,93.49,16.0318]
[1644648282430,48.1403974,93.594,93.492,5.345]
[1644648282627,5.344,93.669,93.481,21.4635909]
[1644648282628,1.26408656,93.489,93.481,21.4635909]
[1644648282828,5.344,93.669,93.49,12.67]
[1644648283028,16.0325,93.67,93.481,21.4635909]
[1644648283029,4.53756287,93.489,93.482,16.4635909]
[1644648283232,16.0337,93.66,93.49,12.67]
[1644648283429,16.0337,93.66,93.52,12.51190951]
[1644648283632,39.56863847,93.594,93.53,12.67]
[1644648284232,5.344,93.593,93.51,14.60802656]
[1644648284530,5.344,93.593,93.486,4.18569]
[1644648284731,5.344,93.593,93.445,1.50203153]
[1644648284929,17.21531633,93.592,93.446,4.18749]
[1644648285129,25.58406347,93.489,93.446,4.18749]
[1644648285730,25.58406347,93.489,93.47,16.0437]
[1644648285930,25.58406347,93.489,93.471,4.18637]
[1644648287136,59.21772795,93.489,93.471,4.18637]
[1644648287539,59.21772795,93.489,93.45,16.0491]
[1644648288741,59.21772795,93.489,93.451,4.18726]
[1644648289140,5.349,93.589,93.46,12.67]
[1644648289339,5.346,93.612,93.5,16.0375]
[1644648289539,5.346,93.594,93.51,12.67]
[1644648289741,5.344,93.611,93.511,4.18458]
[1644648289941,5.344,93.644,93.511,4.18458]
[1644648290139,5.344,93.653,93.512,5.344]
[1644648290342,5.344,93.653,93.514,4.18444]
[1644648290742,16.0345,93.65,93.53,16.0358]
[1644648290941,113.0,93.61,93.54,12.67]
[1644648291141,41.36709549,93.602,93.54,12.67]
[1644648292241,5.343,93.601,93.54,12.67]
[1644648292844,5.343,93.601,93.54,28.7036]
[1644648293444,41.36709549,93.602,93.54,28.7036]
[1644648294644,113.0,93.61,93.54,28.7036]
[1644648294850,5.343,93.64,93.54,28.7036]
[1644648295145,5.343,93.669,93.55,16.0293]
[1644648295345,5.343,93.67,93.56,12.67]
[1644648295548,5.343,93.653,93.57,12.67]
[1644648295747,1.41458463,93.683,93.57,12.67]
[1644648295748,42.11121617,93.63,93.57,12.67]
[1644648295949,35.74443864,93.615,93.57,12.67]
[1644648296147,43.77931737,93.6,93.57,12.67]
[1644648296548,43.77931737,93.6,93.561,4.18234]
[1644648297349,43.77931737,93.6,93.52,12.67]
[1644648297650,5.344,93.599,93.52,12.67]
[1644648298048,5.344,93.599,93.52,28.7071]
[1644648298249,5.344,93.599,93.521,4.18413]
[1644648298452,113.0,93.625,93.521,4.18413]
[1644648298653,113.0,93.625,93.522,5.344]
[1644648298855,113.0,93.625,93.523,4.18404]
[1644648299353,37.27962744,93.599,93.524,5.344]
[1644648299551,37.27962744,93.599,93.54,16.0328]
[1644648299751,37.27962744,93.599,93.54,28.7028]
[1644648299952,37.27962744,93.599,93.526,4.1839]
[1644648300153,5.344,93.594,93.526,4.1839]
[1644648300352,7.72766791,93.594,93.483,1.50203153]
[1644648300555,7.72766791,93.594,93.48,28.7138]
[1644648300757,2.38366791,93.593,93.48,28.7138]
[1644648300952,15.52943424,93.593,93.48,28.7138]
[1644648301363,5.345,93.592,93.48,28.7138]
[1644648301552,5.345,93.592,93.481,4.18592]
[1644648302569,37.27962744,93.599,93.49,16.0421]
[1644648303168,37.27962744,93.599,93.491,4.18547]
[1644648303370,113.0,93.591,93.491,9.53047]
[1644648303571,113.0,93.591,93.51,16.0393]
[1644648303772,113.0,93.591,93.52,12.67]